bitfinex/quotes_ETHUSD_20250721
["timestamp","ask_amount","ask_price","bid_price","bid_amount"]
[1753078736817,5.42740001,3791.9,3791.8,0.08237504]
[1753078737313,4.96440001,3791.9,3791.8,0.08237504]
[1753078737600,5.42640001,3791.9,3791.8,0.08237504]
[1753078737907,5.42540001,3791.9,3791.8,0.08237504]
[1753078738198,8.06260035,3791.9,3791.8,0.08237504]
[1753078738402,5.42540001,3791.9,3791.6,0.1312]
[1753078738620,2.63747222,3791.6,3791.0,3.0]
[1753078738821,2.63747222,3791.6,3791.4,0.1312]
[1753078738974,3.09947857,3791.5,3791.4,0.1312]
[1753078739375,3.92827857,3791.5,3791.4,0.1312]
[1753078739577,2.63784694,3791.0,3790.8,0.02792563]
[1753078739877,4.9868,3790.9,3790.8,0.15912563]
[1753078740270,7.62469601,3790.9,3790.8,0.15912563]
[1753078740469,5.4488,3790.9,3790.8,0.15912563]
[1753078740671,0.1312,3791.6,3790.9,0.55]
[1753078740902,4.159,3791.6,3791.1,1.3233]
[1753078741106,0.7672,3792.3,3791.5,0.6812]
[1753078741414,0.7672,3792.3,3791.2,0.60917783]
[1753078741415,0.00200001,3791.9,3791.8,2.76846989]
[1753078741767,0.00200001,3791.9,3791.8,3.19956989]
[1753078742000,0.00200001,3791.9,3791.8,3.74956989]
[1753078742222,0.00200001,3791.9,3791.6,2.66378309]
[1753078742223,0.79590001,3791.9,3790.7,0.8208]
[1753078742384,4.16100001,3791.9,3791.7,2.6373355]
[1753078742581,4.16100001,3791.9,3791.7,2.63728407]
[1753078742776,4.16100001,3791.9,3791.6,2.63738757]
[1753078743176,4.16100001,3791.9,3791.7,2.63733745]
[1753078743406,4.16100001,3791.9,3791.8,2.63726989]
[1753078744107,4.16100001,3791.9,3791.5,0.4311]
[1753078744305,4.16100001,3791.9,3791.5,2.63747536]
[1753078744524,4.16100001,3791.9,3791.4,2.63754027]
[1753078744695,4.16100001,3791.9,3791.4,3.20817943]
[1753078744898,4.16100001,3791.9,3791.4,0.57063916]
[1753078745077,0.00200001,3791.9,3791.8,5.63726989]
[1753078745277,1.0812,3792.6,3791.9,0.55]
[1753078745278,4.161,3792.4,3791.9,0.55]
[1753078745517,4.161,3792.4,3791.9,0.9811]
[1753078745733,4.161,3792.4,3792.3,2.63692218]
[1753078746082,0.3,3792.6,3792.5,2.63678312]
[1753078746795,0.3,3792.6,3792.4,2.6368002]
[1753078747136,0.3,3792.6,3792.4,2.63683444]
[1753078747281,0.3,3792.6,3792.3,2.63691075]
[1753078747612,0.3,3792.6,3792.5,2.63678312]
[1753078748189,0.3,3792.6,3792.2,0.4311]
[1753078748392,4.624,3792.5,3791.6,0.55]
[1753078748598,4.162,3792.5,3792.2,2.63699103]
[1753078748805,0.3,3792.6,3792.2,0.4311]
[1753078749010,4.162,3792.5,3792.4,2.63685265]
[1753078749206,0.3,3792.6,3792.3,2.63691094]
[1753078749415,0.3,3792.6,3792.4,2.63684315]
[1753078749632,0.3,3792.6,3792.3,2.6369163]
[1753078749932,0.3,3792.6,3792.2,2.6369762]
[1753078750430,0.3,3792.6,3792.3,2.63690272]
[1753078750629,0.3,3792.6,3791.9,0.7768]
[1753078750785,0.3,3792.6,3792.2,2.63693603]
[1753078750992,0.3,3792.6,3792.0,0.14392339]
[1753078751287,0.3,3792.6,3792.2,2.63699087]
[1753078751483,0.3,3792.6,3792.2,2.63693424]
[1753078751711,0.3,3792.6,3792.3,2.63691084]
[1753078751895,0.3,3792.6,3792.2,2.63697541]
[1753078752108,0.3,3792.6,3792.1,2.63704021]
[1753078752416,0.3,3792.6,3791.7,0.66243392]
[1753078752417,0.3,3792.6,3792.5,0.1312]
[1753078752586,0.3,3792.6,3792.5,0.7971]
[1753078752789,0.3,3792.6,3792.1,0.26370402]
[1753078753016,5.2733,3792.6,3792.1,5.63700238]
[1753078753433,5.2733,3792.6,3792.3,2.63691292]
[1753078753588,5.2733,3792.6,3791.9,0.55]
[1753078753787,5.2733,3792.6,3792.2,2.63697067]
[1753078754092,5.2733,3792.6,3792.3,2.63692189]
[1753078754406,5.2733,3792.6,3792.2,2.63696931]
[1753078754611,5.2733,3792.6,3792.3,2.63686375]
[1753078754915,5.2733,3792.6,3792.2,2.63697794]
[1753078755115,5.2733,3792.6,3792.0,2.6371308]
[1753078755310,5.2733,3792.6,3792.1,2.63704994]
[1753078755510,5.2733,3792.6,3791.9,3.55]
[1753078755817,5.2733,3792.6,3792.1,2.63700392]
[1753078756021,5.2733,3792.6,3792.0,2.63711254]
[1753078756223,5.2733,3792.6,3792.1,2.63706028]
[1753078756607,5.2733,3792.6,3792.2,2.63697508]
[1753078756930,5.2733,3792.6,3792.2,2.63694295]
[1753078757234,5.2733,3792.6,3792.3,2.63689263]
[1753078757537,4.156,3792.5,3792.0,0.4977713]
[1753078757703,0.3,3792.6,3792.5,2.63678312]
[1753078758043,4.454,3792.6,3792.5,2.63678312]
[1753078758354,4.454,3792.6,3792.5,3.13455095]
[1753078758551,0.3,3792.6,3792.5,3.13455095]
[1753078758699,0.3,3792.6,3792.5,3.7116975]
[1753078758700,4.454,3792.6,3792.5,3.7116975]
[1753078759024,4.454,3792.6,3792.5,1.04854655]
[1753078759211,4.454,3792.6,3792.5,3.68532967]
[1753078759536,4.454,3792.6,3792.1,0.31350364]
[1753078759827,4.454,3792.6,3792.4,2.63684139]
[1753078760046,4.454,3792.6,3792.2,3.10837373]
[1753078760229,4.454,3792.6,3792.2,0.4714]
[1753078760431,4.454,3792.6,3792.3,0.4714]
[1753078760636,4.454,3792.6,3792.4,2.63679272]
[1753078760937,4.454,3792.6,3792.4,3.10819272]
[1753078761438,0.3,3792.6,3792.5,2.63678312]
[1753078761746,0.3,3792.6,3792.5,3.10818312]
[1753078761947,0.3,3792.6,3792.2,0.55]
[1753078762245,0.302,3792.6,3792.5,2.63678312]
[1753078762412,0.302,3792.6,3792.1,0.13208]
[1753078762611,0.302,3792.6,3792.5,0.1312]
[1753078763240,0.7709,3792.6,3792.5,0.1312]
[1753078763537,1.5495,3792.6,3792.5,0.1312]
[1753078764321,1.0806,3792.6,3792.5,0.1312]
[1753078764528,1.0806,3792.6,3791.9,3.0]
[1753078764829,0.302,3792.6,3792.5,2.76798312]
[1753078765221,0.44,3792.9,3792.5,6.78938312]
[1753078765418,0.27593323,3792.9,3792.8,0.765]
[1753078765714,0.27593323,3792.9,3792.5,2.63678312]
[1753078765913,0.27593323,3792.9,3791.8,0.001]
[1753078766238,0.27593323,3792.9,3792.8,2.63657456]
[1753078766419,4.43193323,3792.9,3792.3,0.4714]
[1753078766620,0.27593323,3792.9,3792.4,3.18683434]
[1753078766821,4.158,3792.8,3792.5,2.63672958]
[1753078767038,4.158,3792.8,3792.3,0.4714]
[1753078767234,4.158,3792.8,3792.7,2.63664407]
[1753078767812,0.27593323,3792.9,3792.7,2.63664407]
[1753078768024,4.159,3792.8,3792.7,2.63664407]
[1753078768225,4.159,3792.8,3792.5,2.63672987]
[1753078768429,4.159,3792.8,3792.6,2.63669707]
[1753078768751,4.159,3792.8,3792.4,2.63681775]
[1753078769044,4.159,3792.8,3792.3,2.63690201]
[1753078769252,4.159,3792.8,3792.1,3.0]
[1753078769448,0.02646219,3792.8,3791.8,0.001]
[1753078769648,4.157,3792.7,3792.4,2.63678502]
[1753078769822,4.157,3792.7,3792.0,0.55]
[1753078770027,4.157,3792.7,3792.2,2.6369304]
[1753078770214,4.157,3792.7,3792.3,2.63691634]
[1753078770420,4.157,3792.7,3792.0,3.18711518]
[1753078770421,4.157,3792.7,3792.2,2.63697445]
[1753078770622,4.6259,3792.7,3791.9,3.4714]
[1753078770929,4.6259,3792.7,3792.0,2.63710109]
[1753078771132,4.157,3792.7,3792.3,2.63686662]
[1753078771339,4.157,3792.7,3791.9,1.15825079]
[1753078771518,4.157,3792.7,3791.8,0.001]
[1753078771715,1.2749,3792.6,3791.8,0.001]
[1753078772019,1.2749,3792.6,3791.9,2.63718527]
[1753078772334,3.91161857,3792.6,3791.8,0.001]
[1753078772529,1.2749,3792.6,3791.8,0.001]
[1753078772733,0.806,3792.6,3791.8,2.6382441]
[1753078773059,4.155,3792.5,3791.9,0.026372]
[1753078773419,4.155,3792.5,3791.8,0.001]
[1753078773623,6.79179943,3792.5,3791.8,2.63825919]
[1753078773846,0.806,3792.6,3791.9,2.63717415]
[1753078773847,4.154,3792.4,3791.9,2.63717415]
[1753078774840,4.152,3792.3,3792.0,2.6371278]
[1753078775022,4.152,3792.3,3792.2,2.63696231]
[1753078775559,4.152,3792.3,3792.2,0.1312]
[1753078775736,4.152,3792.3,3792.2,2.76819171]
[1753078776141,4.149,3792.5,3792.4,2.636834]
[1753078776321,4.149,3792.5,3792.3,2.63691425]
[1753078776657,4.149,3792.5,3792.4,0.1312]
[1753078777751,4.6179,3792.5,3792.4,0.1312]
[1753078779342,4.149,3792.5,3792.4,0.1312]
[1753078780432,7.22198312,3792.5,3792.4,0.1312]
[1753078780658,2.63687292,3792.4,3791.8,0.001]
[1753078780835,2.63687292,3792.4,3792.3,0.1312]
[1753078781238,7.22200239,3792.5,3792.3,0.1312]
[1753078781761,2.63685265,3792.4,3792.3,0.1312]
[1753078782063,4.149,3792.5,3792.3,0.1312]
[1753078782230,6.78580799,3792.5,3792.3,0.1312]
[1753078782581,4.149,3792.5,3792.3,0.1312]
[1753078782761,2.63663906,3792.8,3792.3,0.1312]
[1753078782923,6.78065065,3792.7,3792.0,0.4298]
[1753078783129,4.144,3792.7,3792.4,0.1312]
[1753078783459,1.08513323,3792.9,3792.4,0.1312]
[1753078783663,4.5772,3792.8,3792.4,0.1312]
[1753078783839,2.63671609,3792.6,3792.4,0.1312]
[1753078784026,4.14,3792.5,3792.4,0.1312]
[1753078784226,6.77678312,3792.5,3792.4,0.1312]
[1753078785742,7.21298312,3792.5,3792.4,0.1312]
[1753078786265,4.5762,3792.5,3792.4,0.1312]
[1753078786473,7.21298312,3792.5,3792.4,0.1312]
[1753078786628,4.14,3792.5,3792.4,0.1312]
[1753078787345,6.77678312,3792.5,3792.4,0.1312]
[1753078788471,7.21298312,3792.5,3792.4,0.1312]
[1753078788657,7.20598312,3792.5,3792.4,0.1312]
[1753078789047,4.133,3792.5,3791.9,0.001]
[1753078789235,2.63685265,3792.4,3792.3,0.1312]
[1753078789434,3.86825265,3792.4,3792.3,0.1312]
[1753078789643,3.43205265,3792.4,3792.3,0.1312]
[1753078789844,2.63698257,3792.3,3791.9,0.1322]
[1753078790072,6.79447765,3792.2,3791.9,0.1322]
[1753078790273,6.76801546,3792.2,3791.9,0.1322]
[1753078790571,4.5672,3792.2,3791.9,0.1322]
[1753078790740,4.131,3792.2,3791.9,0.1322]
[1753078790940,7.64299659,3793.3,3792.3,2.63685418]
[1753078790941,0.7865,3792.7,3792.3,2.63685418]
[1753078791267,4.131,3792.6,3792.3,2.63691725]
[1753078791439,0.7865,3792.7,3792.5,2.76797156]
[1753078791639,4.131,3792.6,3792.5,0.1312]
[1753078791841,0.27593323,3792.9,3792.5,0.1312]
[1753078792056,4.131,3792.8,3792.5,0.1312]
[1753078793773,7.20377622,3792.8,3792.5,0.1312]
[1753078793983,4.5672,3792.8,3792.5,0.1312]
[1753078794751,4.128,3792.7,3792.5,0.1312]
[1753078796773,4.124,3792.6,3792.5,0.1312]
[1753078798283,4.123,3792.6,3792.5,0.1312]
[1753078798690,4.123,3792.6,3792.5,0.561]
[1753078799056,4.123,3792.6,3792.5,0.1312]
[1753078799260,0.27593323,3792.9,3792.5,0.1312]
[1753078799472,4.122,3792.8,3792.5,0.1312]
[1753078799865,0.27593323,3792.9,3792.5,0.1312]
[1753078800175,4.119,3792.8,3792.5,0.1312]
[1753078800365,0.27593323,3792.9,3792.5,0.1312]
[1753078800571,0.27593323,3792.9,3792.8,2.63657456]
[1753078800804,4.39493323,3792.9,3792.8,2.76777456]
[1753078801004,4.39493323,3792.9,3792.8,3.19757456]
[1753078801328,0.27593323,3792.9,3792.8,3.86026172]
[1753078801621,4.39493323,3792.9,3792.8,3.86026172]
[1753078803277,0.27593323,3792.9,3792.8,8.26172746]
[1753078803592,0.27593323,3792.9,3792.8,8.23536172]
[1753078804913,0.27593323,3792.9,3792.8,4.25556172]
[1753078805072,0.27593323,3792.9,3792.8,3.59287456]
[1753078805268,0.27593323,3792.9,3792.8,0.1312]
[1753078805464,0.27593323,3792.9,3792.8,2.76777456]
[1753078805969,0.27593323,3792.9,3792.8,3.19757456]
[1753078806199,0.27593323,3792.9,3792.8,0.1312]
[1753078806793,4.38993323,3792.9,3792.8,0.1322]
[1753078807094,4.39193323,3792.9,3792.8,0.1322]
[1753078809307,4.38993323,3792.9,3792.8,0.1322]
[1753078812596,4.38693323,3792.9,3792.8,0.9338]
[1753078812841,4.38693323,3792.9,3792.8,0.1322]
[1753078814755,4.38693323,3792.9,3792.8,3.24027456]
[1753078815165,4.38693323,3792.9,3792.8,3.90813156]
[1753078815553,0.27793323,3792.9,3792.8,4.45813156]
[1753078815754,0.27793323,3792.9,3792.8,4.67823156]
[1753078817287,0.27793323,3792.9,3792.8,4.20673156]
[1753078817489,4.38593323,3792.9,3792.8,3.43663156]
[1753078818399,0.27793323,3792.9,3792.8,3.43663156]
[1753078818572,0.27793323,3792.9,3792.8,3.90813156]
[1753078818573,4.38393323,3792.9,3792.8,3.90813156]
[1753078819299,4.38393323,3792.9,3792.8,3.43663156]
[1753078819975,4.38393323,3792.9,3792.8,2.76877456]
[1753078821512,4.37993323,3792.9,3792.8,2.76877456]
[1753078822010,4.37993323,3792.9,3792.8,3.24027456]
[1753078822513,4.37993323,3792.9,3792.8,2.76877456]
[1753078822934,4.37993323,3792.9,3792.8,3.24027456]
[1753078823094,0.27793323,3792.9,3792.8,3.90498275]
[1753078823297,4.37793323,3792.9,3792.8,3.90498275]
[1753078824130,4.37693323,3792.9,3792.8,3.90498275]
[1753078824697,0.27793323,3792.9,3792.8,3.90498275]
[1753078824903,0.27793323,3792.9,3792.8,4.45498275]
[1753078825101,0.27793323,3792.9,3792.8,8.21098275]
[1753078826609,0.27793323,3792.9,3792.8,5.21098275]
[1753078826921,0.27793323,3792.9,3792.8,3.43348275]
[1753078827317,0.27793323,3792.9,3792.8,3.90498275]
[1753078827631,4.37293323,3792.9,3792.8,0.1322]
[1753078828041,4.83623323,3792.9,3792.8,0.1322]
[1753078828936,7.03590046,3792.9,3792.8,0.1322]
[1753078829109,5.62783323,3792.9,3792.8,0.001]
[1753078829514,8.26433827,3792.9,3792.8,0.001]
[1753078832919,0.27793323,3792.9,3792.8,3.10907456]
[1753078833213,0.27793323,3792.9,3792.8,7.48027456]
[1753078833843,0.002,3793.4,3793.3,6.18622703]
[1753078834212,0.002,3793.4,3793.3,6.65772703]
[1753078835171,0.002,3793.4,3793.3,6.10772703]
[1753078835369,0.002,3793.4,3793.3,7.06066112]
[1753078835545,0.002,3793.4,3793.3,7.61066112]
[1753078836617,0.002,3793.4,3793.3,8.43076112]
[1753078838569,1e-08,3793.4,3793.3,8.43076112]
[1753078838971,1e-08,3793.4,3793.3,12.52276112]
[1753078839666,0.04,3793.9,3793.8,3.18587959]
[1753078839878,0.04,3793.9,3793.8,6.18587959]
[1753078840077,0.04,3793.9,3793.8,7.47716433]
[1753078840288,0.04,3793.9,3793.8,7.94866433]
[1753078840433,0.04,3793.9,3793.8,8.73936433]
[1753078840949,0.04,3793.9,3793.8,12.83036433]
[1753078842367,0.04,3793.9,3793.8,8.26786433]
[1753078842568,0.04,3793.9,3793.8,7.71786433]
[1753078842881,0.04,3793.9,3793.8,7.84906433]
[1753078843087,0.04,3793.9,3793.8,5.76707959]
[1753078843864,0.8147,3793.8,3793.3,2.63617831]
[1753078844062,0.8147,3793.8,3793.0,0.4518]
[1753078844390,0.04,3793.9,3793.8,2.63587959]
[1753078844755,0.04,3793.9,3793.8,3.11403838]
[1753078844955,0.04,3793.9,3793.8,7.07216939]
[1753078845271,0.04,3793.9,3793.8,7.5958106]
[1753078846049,0.04,3793.9,3793.8,11.6948106]
[1753078846787,0.04,3793.9,3793.8,7.5958106]
[1753078846957,0.04,3793.9,3793.8,7.1440106]
[1753078847153,0.04,3793.9,3793.8,3.5940106]
[1753078847787,0.04,3793.9,3793.8,0.95813101]
[1753078848089,0.04,3793.9,3793.8,2.63587959]
[1753078848961,0.04,3793.9,3793.7,5.63594332]
[1753078849363,0.4682,3793.9,3793.4,3.0]
[1753078849656,0.4282,3793.8,3793.2,6.73225063]
[1753078849862,0.7873,3793.7,3793.2,2.63628317]
[1753078850191,0.04,3793.9,3793.1,0.02636366]
[1753078850416,0.04,3793.9,3793.0,6.1863784]
[1753078850417,0.4682,3793.9,3793.0,6.1863784]
[1753078850729,2.63588249,3793.8,3793.1,2.63630246]
[1753078851026,0.49466219,3793.9,3792.8,0.001]
[1753078851027,0.45466219,3793.7,3792.8,0.001]
[1753078851518,4.099,3793.6,3793.2,2.63624754]
[1753078851816,0.4282,3793.7,3793.2,2.63627431]
[1753078852017,4.5262,3793.7,3793.3,2.63622208]
[1753078852218,0.04,3793.9,3793.3,3.163485]
[1753078852518,0.04,3793.9,3793.3,2.63621054]
[1753078852519,4.098,3793.8,3793.3,2.63621054]
[1753078852724,0.04,3793.9,3793.3,2.63621054]
[1753078853600,0.04,3793.9,3793.4,2.63615439]
[1753078853917,0.04,3793.9,3793.7,0.1312]
[1753078854116,0.4282,3793.8,3793.7,0.1312]
[1753078854288,0.4282,3793.8,3792.8,0.7773]
[1753078854289,2.63595113,3793.7,3792.8,6.41386259]
[1753078854495,3.06421855,3793.6,3793.5,0.1312]
[1753078854711,2.63611339,3793.5,3792.8,2.63756596]
[1753078854876,2.63611339,3793.5,3793.2,0.1312]
[1753078854877,2.63616815,3793.4,3793.2,0.1312]
[1753078855081,3.06436815,3793.4,3793.2,0.1312]
[1753078855281,2.63616815,3793.4,3793.2,0.1312]
[1753078855512,0.4282,3793.3,3793.2,0.1312]
[1753078856838,2.6358886,3793.8,3793.2,0.1312]
[1753078856839,4.095,3793.6,3793.2,0.1312]
[1753078857187,7.15923228,3793.6,3793.2,0.1312]
[1753078857517,0.4282,3793.5,3793.2,0.1312]
[1753078857718,3.06440342,3793.4,3793.2,0.1312]
[1753078857928,0.4282,3793.4,3793.2,0.1312]
[1753078858125,0.4282,3793.3,3793.2,0.1312]
[1753078858285,0.02646219,3793.5,3793.2,0.1312]
[1753078858492,3.06414881,3793.8,3793.2,2.76747501]
[1753078858792,6.72895199,3793.7,3793.4,0.1312]
[1753078859034,2.6624967,3793.6,3793.4,0.1312]
[1753078859405,0.4282,3793.5,3793.4,0.1312]
[1753078859631,3.06428804,3793.5,3792.8,2.6375612]
[1753078859831,0.02646219,3793.4,3793.2,0.1312]
[1753078859987,0.4282,3793.3,3793.2,0.1312]
[1753078860606,2.63601987,3793.6,3793.2,0.1312]
[1753078860943,4.092,3793.5,3793.2,0.1312]
[1753078861434,0.45466219,3793.4,3793.2,0.1312]
[1753078861601,3.09082211,3793.4,3793.2,0.1312]
[1753078861805,3.85695912,3793.3,3792.8,0.001]
[1753078862020,2.63643553,3793.0,3792.9,0.1312]
[1753078862205,6.72643553,3793.0,3792.9,0.1312]
[1753078862414,7.15463553,3793.0,3792.9,0.1312]
[1753078863520,4.5182,3793.0,3792.9,0.1312]
[1753078863725,7.15463553,3793.0,3792.9,0.1312]
[1753078864833,2.63650504,3792.9,3792.8,0.001]
[1753078864994,3.09116723,3792.9,3792.8,0.001]
[1753078865996,3.06470504,3792.9,3792.8,0.001]
[1753078866307,3.09116723,3792.9,3792.8,0.001]
[1753078867336,3.06470504,3792.9,3792.8,0.001]
[1753078867534,7.15170504,3792.9,3792.8,0.001]
[1753078867733,3.06470504,3792.9,3792.8,0.001]
[1753078867952,7.15170504,3792.9,3792.8,0.001]
[1753078868156,3.06470504,3792.9,3792.8,0.001]
[1753078868458,7.15170504,3792.9,3792.8,0.001]
[1753078870166,3.06470504,3792.9,3792.8,0.001]
[1753078870384,7.17916723,3792.9,3792.8,0.001]
[1753078870670,2.63706125,3792.1,3792.0,0.001]
[1753078870826,7.50996125,3792.1,3792.0,0.001]
[1753078871024,7.94986125,3792.1,3792.0,0.001]
[1753078873550,0.1312,3792.2,3792.0,0.001]
[1753078873750,4.088,3792.1,3792.0,1.3519]
[1753078874240,4.088,3792.1,3792.0,3.9890308]
[1753078874444,4.088,3792.1,3792.0,4.6518591]
[1753078874639,4.088,3792.1,3792.0,0.1322]
[1753078875476,0.1312,3792.5,3792.0,0.1322]
[1753078875652,4.088,3792.4,3792.1,0.02637061]
[1753078875854,4.088,3792.4,3792.3,0.1312]
[1753078876489,3.3896349,3792.6,3792.3,0.1312]
[1753078876790,4.088,3792.4,3792.3,0.1312]
[1753078876962,6.72485265,3792.4,3792.0,0.001]
[1753078877160,2.637035,3792.2,3792.0,0.001]
[1753078877381,4.088,3792.1,3792.0,0.001]
[1753078877572,6.72506125,3792.1,3792.0,0.001]
[1753078878272,0.4399,3792.1,3792.0,0.001]
[1753078878484,4.088,3792.1,3792.0,1.2487]
[1753078878789,4.088,3792.1,3792.0,4.28773894]
[1753078879291,4.088,3792.1,3792.0,1.65060814]
[1753078879502,4.088,3792.1,3792.0,1.21030814]
[1753078879657,0.02646219,3792.6,3792.1,2.63701643]
[1753078879857,4.088,3792.5,3792.2,2.63698695]
[1753078880092,4.088,3792.4,3792.2,2.76818695]
[1753078880269,4.088,3792.3,3792.2,2.76818695]
[1753078880990,4.088,3792.3,3792.2,0.1312]
[1753078881492,0.02646219,3792.7,3792.2,0.1312]
[1753078881702,4.088,3792.6,3792.2,0.1312]
[1753078881856,4.088,3792.6,3792.3,2.6369221]
[1753078882064,0.4399,3792.5,3792.0,0.001]
[1753078882257,4.088,3792.4,3792.1,2.63700486]
[1753078882494,4.088,3792.4,3792.0,2.63808549]
[1753078882689,4.088,3792.3,3792.0,0.4413]
[1753078882989,4.088,3792.3,3792.1,0.1312]
[1753078883592,0.02646219,3792.2,3792.1,0.1312]
[1753078883770,4.088,3792.3,3792.1,0.1312]
[1753078885665,3.20768838,3792.8,3792.1,0.1312]
[1753078886089,4.088,3792.7,3792.1,0.1312]
[1753078886796,0.02646219,3792.6,3792.1,0.1312]
[1753078886971,2.6367992,3792.5,3792.1,0.1312]
[1753078887301,4.11446219,3792.4,3792.1,0.1312]
[1753078887594,4.088,3792.4,3792.1,0.1312]
[1753078888914,4.088,3792.3,3792.2,2.63698605]
[1753078889097,4.088,3792.3,3792.1,2.76824476]
[1753078889987,4.088,3792.2,3792.1,2.76824476]
[1753078890989,4.088,3792.2,3792.1,0.1312]
[1753078891495,0.1312,3792.8,3792.1,0.67205637]
[1753078891697,4.088,3792.7,3792.2,1.25876991]
[1753078891902,4.088,3792.6,3792.5,2.63678312]
[1753078892110,0.8146,3793.2,3792.7,0.1312]
[1753078892423,4.088,3793.1,3792.7,0.1312]
[1753078892725,0.1332,3793.4,3792.5,0.4403]
[1753078892726,0.002,3793.4,3793.3,2.63622703]
[1753078893034,4.09,3793.4,3793.3,3.07652703]
[1753078893331,4.09,3793.4,3793.3,3.79213342]
[1753078893502,4.09,3793.4,3793.3,4.56663342]
[1753078893820,0.002,3793.4,3793.3,4.56663342]
[1753078894403,0.002,3793.4,3793.3,0.1312]
[1753078894598,0.4419,3793.4,3793.3,0.1312]
[1753078894803,4.5289,3793.4,3793.1,0.1312]
[1753078895402,0.02646219,3793.3,3793.1,0.1312]
[1753078895603,4.089,3793.4,3793.1,0.1312]
[1753078895812,0.4399,3793.2,3793.1,0.1312]
[1753078896023,4.089,3793.4,3793.1,0.1312]
[1753078897424,4.089,3793.4,3793.1,0.5715]
[1753078897819,0.002,3793.4,3793.3,2.63622703]
[1753078898004,0.002,3793.4,3793.3,3.46722703]
[1753078898196,0.002,3793.4,3793.3,4.03872703]
[1753078901130,0.002,3793.4,3793.3,7.6150893]
[1753078901334,0.002,3793.4,3793.3,0.9622]
[1753078901635,0.002,3793.4,3793.3,0.1312]
[1753078901933,0.002,3793.4,3793.3,3.19802703]
[1753078903649,0.002,3793.4,3793.3,2.76742703]
[1753078904610,0.002,3793.4,3793.3,4.88079482]
[1753078904962,1e-08,3793.4,3793.3,13.08595709]
[1753078905114,1e-08,3793.4,3793.3,13.05959482]
[1753078905453,1e-08,3793.6,3793.5,3.97448804]
[1753078905654,1e-08,3793.6,3793.5,17.82742721]
[1753078905823,1e-08,3793.6,3793.5,18.23166633]
[1753078906013,0.43725244,3794.8,3794.3,3.44563224]
[1753078906417,0.43725244,3794.8,3794.3,3.87623224]
[1753078906722,0.43725244,3794.8,3794.7,2.63525443]
[1753078907050,0.43725244,3794.8,3794.7,2.89877987]
[1753078907255,0.43725244,3794.8,3794.7,3.32937987]
[1753078908160,0.43725244,3794.8,3794.7,2.89877987]
[1753078908318,0.43725244,3794.8,3794.7,2.63525443]
[1753078908519,0.43725244,3794.8,3794.7,3.06585443]
[1753078910156,0.43725244,3794.8,3794.5,3.0]
[1753078910451,0.43725244,3794.8,3794.7,2.63525443]
[1753078911227,0.43725244,3794.8,3794.6,2.63527598]
[1753078911842,0.43725244,3794.8,3794.5,4.5156]
[1753078912044,0.43725244,3794.8,3794.7,2.63525443]
[1753078912408,0.43725244,3794.8,3794.7,6.06585443]
[1753078913049,0.43725244,3794.8,3794.7,2.63525443]
[1753078913455,0.43725244,3794.8,3794.6,2.63531849]
[1753078913656,0.43725244,3794.8,3794.3,3.8101]
[1753078913827,0.43725244,3794.8,3794.3,1.97372377]
[1753078914035,0.43725244,3794.8,3794.4,4.084]
[1753078914762,0.43725244,3794.8,3794.6,0.1312]
[1753078916048,2.63525443,3794.7,3794.6,0.1312]
[1753078916229,3.09605443,3794.7,3794.6,0.1312]
[1753078916421,3.07244408,3794.8,3794.6,0.1312]
[1753078916623,2.63525443,3794.7,3794.6,0.1312]
[1753078916921,3.09605443,3794.7,3794.6,0.1312]
[1753078917552,3.09605443,3794.7,3794.0,7.8476]
[1753078917553,2.63535323,3794.6,3794.0,7.8476]
[1753078917730,2.63535323,3794.6,3794.4,0.1312]
[1753078918063,0.43725244,3794.8,3794.6,2.63531172]
[1753078918273,0.43725244,3794.8,3794.6,1.3548581]
[1753078918421,0.89805244,3794.8,3794.7,0.1312]
[1753078918626,3.53323742,3794.8,3794.7,0.1312]
[1753078918825,0.43725244,3794.8,3794.7,0.1312]
[1753078919747,3.07243742,3794.8,3794.7,0.1312]
[1753078919944,3.53323742,3794.8,3794.7,0.1312]
[1753078920175,4.33063742,3794.8,3794.7,0.1312]
[1753078920392,1.69745244,3794.8,3794.4,0.001]
[1753078920578,1.69745244,3794.8,3794.4,0.1322]
[1753078920787,3.07444827,3794.8,3794.4,0.1322]
[1753078921116,0.43925244,3794.8,3794.6,0.1312]
[1753078921238,0.43925244,3794.8,3794.7,6.82815443]
[1753078921434,0.43925244,3794.8,3794.7,7.37815443]
[1753078921632,4.52325244,3794.8,3794.7,7.37815443]
[1753078921834,0.43925244,3794.8,3794.7,8.39272902]
[1753078922034,4.52325244,3794.8,3794.7,8.39272902]
[1753078922234,0.43925244,3794.8,3794.7,8.39272902]
[1753078922643,4.52325244,3794.8,3794.7,8.39272902]
[1753078923676,0.7661,3794.4,3793.1,0.1312]
[1753078923975,4.33948563,3794.6,3793.1,0.1312]
[1753078923976,2.63629653,3793.2,3793.1,0.1312]
[1753078924284,13.39445994,3793.2,3792.1,0.041]
[1753078924490,1.35402213,3793.1,3792.1,0.041]
[1753078924638,6.78445636,3793.0,3792.1,0.041]
[1753078924842,2.63671125,3792.7,3792.1,0.041]
[1753078925140,4.147,3792.9,3792.1,0.041]
[1753078925141,6.7837136,3792.6,3792.1,0.041]
[1753078925675,4.147,3792.5,3792.1,0.041]
[1753078925835,2.63671521,3792.6,3792.1,0.4716]
[1753078926040,4.146,3792.5,3792.1,0.4716]
[1753078926348,4.146,3792.5,3792.1,0.041]
[1753078926558,2.63686237,3792.4,3792.1,0.041]
[1753078926850,2.63685265,3792.4,3792.1,0.041]
[1753078927068,3.09765265,3792.4,3792.1,0.041]
[1753078927265,3.09772882,3792.3,3792.1,0.041]
[1753078927469,4.146,3792.5,3792.1,0.041]
[1753078927470,4.145,3792.2,3792.1,0.041]
[1753078928089,0.8229,3793.2,3792.1,0.4716]